[Event "*** SCC Grand Prix: Titled Tuesday Blitz"]
[Site "Chess.com"]
[Date "2020.06.02"]
[Round "3"]
[White "witcher8"]
[Black "ViktoriyaTarasova"]
[Result "0-1"]
[WhiteElo "2427"]
[BlackElo "2274"]
[TimeControl "180+1"]
[EndTime "10:28:29 PDT"]
[Termination "ViktoriyaTarasova won on time"]

1. e4 {[%clk 0:03:00.9]} 1... c5 {[%clk 0:02:58.3]} 2. Nc3 {[%clk 0:03:00.2]}
2... d6 {[%clk 0:02:56.9]} 3. f4 {[%clk 0:03:00.5]} 3... g6 {[%clk 0:02:55.6]}
4. Nf3 {[%clk 0:03:00.6]} 4... Bg7 {[%clk 0:02:54.6]} 5. Bc4 {[%clk 0:03:01.2]}
5... Nc6 {[%clk 0:02:53]} 6. O-O {[%clk 0:03:01.3]} 6... e6 {[%clk 0:02:52]} 7.
f5 {[%clk 0:03:01.6]} 7... exf5 {[%clk 0:02:50.5]} 8. d3 {[%clk 0:03:01.5]} 8...
Nge7 {[%clk 0:02:49.6]} 9. Qe1 {[%clk 0:03:01.2]} 9... Ne5 {[%clk 0:02:31]} 10.
Bg5 {[%clk 0:02:49.3]} 10... Nxc4 {[%clk 0:02:23.3]} 11. dxc4 {[%clk 0:02:47.4]}
11... h6 {[%clk 0:02:24]} 12. Bxe7 {[%clk 0:02:38.6]} 12... Qxe7 {[%clk
0:02:21.5]} 13. Nd5 {[%clk 0:02:37.3]} 13... Qxe4 {[%clk 0:02:13.7]} 14. Nc7+
{[%clk 0:02:31.4]} 14... Kd7 {[%clk 0:02:12.3]} 15. Nxa8 {[%clk 0:02:31]} 15...
Bxb2 {[%clk 0:02:02.7]} 16. Rb1 {[%clk 0:02:23.4]} 16... Qxe1 {[%clk 0:01:48.4]}
17. Rfxe1 {[%clk 0:02:14.8]} 17... Bf6 {[%clk 0:01:48.9]} 18. Re2 {[%clk
0:01:53.9]} 18... b6 {[%clk 0:01:36.8]} 19. Nxb6+ {[%clk 0:01:51.6]} 19... axb6
{[%clk 0:01:36.5]} 20. Rxb6 {[%clk 0:01:52.5]} 20... Kc7 {[%clk 0:01:35.7]} 21.
Rb3 {[%clk 0:01:42.1]} 21... Be6 {[%clk 0:01:29.5]} 22. Ra3 {[%clk 0:01:28.6]}
22... Bxc4 {[%clk 0:01:25.2]} 23. Rd2 {[%clk 0:01:28.6]} 23... Rb8 {[%clk
0:01:22.2]} 24. Ra7+ {[%clk 0:01:24.3]} 24... Kc6 {[%clk 0:01:17.8]} 25. a4
{[%clk 0:01:14.4]} 25... g5 {[%clk 0:01:10.1]} 26. Rd1 {[%clk 0:01:09.1]} 26...
g4 {[%clk 0:01:02.7]} 27. Nd2 {[%clk 0:01:08.8]} 27... Bd4+ {[%clk 0:01:03.2]}
28. Kh1 {[%clk 0:01:08.5]} 28... Be6 {[%clk 0:00:52.2]} 29. Rb1 {[%clk
0:00:38.3]} 29... Re8 {[%clk 0:00:41.1]} 30. a5 {[%clk 0:00:33.1]} 30... c4
{[%clk 0:00:38.2]} 31. Rab7 {[%clk 0:00:14.8]} 31... Bd5 {[%clk 0:00:32.6]} 32.
Nf1 {[%clk 0:00:01.9]} 32... Re2 {[%clk 0:00:32.1]} 0-1

[Event "*** SCC Grand Prix: Titled Tuesday Blitz"]
[Site "Chess.com"]
[Date "2020.06.02"]
[Round "3"]
[White "antoszu"]
[Black "saisree"]
[Result "1-0"]
[WhiteElo "2543"]
[BlackElo "2352"]
[TimeControl "180+1"]
[EndTime "10:28:30 PDT"]
[Termination "antoszu won by resignation"]

1. e4 {[%clk 0:03:00.9]} 1... c6 {[%clk 0:03:00.1]} 2. Nf3 {[%clk 0:03:00.4]}
2... d5 {[%clk 0:03:01]} 3. d3 {[%clk 0:03:01]} 3... Bg4 {[%clk 0:02:53.1]} 4.
h3 {[%clk 0:03:00.5]} 4... Bxf3 {[%clk 0:02:50.7]} 5. Qxf3 {[%clk 0:03:01.4]}
5... e5 {[%clk 0:02:49.8]} 6. g3 {[%clk 0:03:00.6]} 6... Nf6 {[%clk 0:02:48.9]}
7. Bg2 {[%clk 0:03:00.1]} 7... Nbd7 {[%clk 0:02:49]} 8. O-O {[%clk 0:03:00.3]}
8... Bd6 {[%clk 0:02:49.3]} 9. Qe2 {[%clk 0:02:46.5]} 9... O-O {[%clk
0:02:48.1]} 10. exd5 {[%clk 0:02:24.2]} 10... cxd5 {[%clk 0:02:47.4]} 11. Nc3
{[%clk 0:02:24.5]} 11... Qa5 {[%clk 0:02:25.2]} 12. Bd2 {[%clk 0:02:02.9]} 12...
Qc5 {[%clk 0:02:24.5]} 13. b4 {[%clk 0:02:02]} 13... Qd4 {[%clk 0:01:57.9]} 14.
Nb5 {[%clk 0:01:36.2]} 14... Qb6 {[%clk 0:01:57.5]} 15. c4 {[%clk 0:01:36.4]}
15... Rac8 {[%clk 0:01:44.3]} 16. a4 {[%clk 0:01:15.4]} 16... Be7 {[%clk
0:01:01.8]} 17. Be3 {[%clk 0:00:47.8]} 17... d4 {[%clk 0:01:01.2]} 18. Bxd4
{[%clk 0:00:33.7]} 18... exd4 {[%clk 0:00:56.6]} 19. Qxe7 {[%clk 0:00:34.6]}
19... Rfe8 {[%clk 0:00:42.2]} 20. Qd6 {[%clk 0:00:34]} 20... Rc6 {[%clk
0:00:41.7]} 21. Qxd4 {[%clk 0:00:25.9]} 21... Qxd4 {[%clk 0:00:39.2]} 22. Nxd4
{[%clk 0:00:26.8]} 22... Rd6 {[%clk 0:00:39.6]} 23. Nb5 {[%clk 0:00:25.1]} 23...
Rxd3 {[%clk 0:00:24.3]} 24. c5 {[%clk 0:00:24.8]} 24... Rb3 {[%clk 0:00:17.3]}
25. Rfb1 {[%clk 0:00:22.8]} 25... Rxb1+ {[%clk 0:00:17.2]} 26. Rxb1 {[%clk
0:00:23.7]} 26... Ne4 {[%clk 0:00:14.3]} 27. Bxe4 {[%clk 0:00:20.7]} 27... Rxe4
{[%clk 0:00:14.9]} 28. Nd6 {[%clk 0:00:21.6]} 28... Re2 {[%clk 0:00:10.1]} 29.
Nxb7 {[%clk 0:00:21.8]} 29... Ra2 {[%clk 0:00:10.8]} 30. c6 {[%clk 0:00:19.8]}
30... Nb6 {[%clk 0:00:09.1]} 31. a5 {[%clk 0:00:20.1]} 31... Nc8 {[%clk
0:00:08]} 32. Rd1 {[%clk 0:00:20.3]} 1-0

[Event "*** SCC Grand Prix: Titled Tuesday Blitz"]
[Site "Chess.com"]
[Date "2020.06.02"]
[Round "3"]
[White "Zurability"]
[Black "Playgood28"]
[Result "1-0"]
[WhiteElo "2719"]
[BlackElo "2310"]
[TimeControl "180+1"]
[EndTime "10:28:31 PDT"]
[Termination "Zurability won on time"]

1. Nf3 {[%clk 0:03:00.9]} 1... f5 {[%clk 0:02:59.1]} 2. b3 {[%clk 0:02:57.9]}
2... d6 {[%clk 0:02:58.4]} 3. d4 {[%clk 0:02:58.3]} 3... Nf6 {[%clk 0:02:56.5]}
4. Bb2 {[%clk 0:02:58.5]} 4... g6 {[%clk 0:02:56.3]} 5. g3 {[%clk 0:02:58.3]}
5... Bg7 {[%clk 0:02:56]} 6. Bg2 {[%clk 0:02:59]} 6... O-O {[%clk 0:02:55.3]} 7.
O-O {[%clk 0:02:59.4]} 7... c6 {[%clk 0:02:54.9]} 8. Nbd2 {[%clk 0:02:58.8]}
8... Qc7 {[%clk 0:02:50.1]} 9. Re1 {[%clk 0:02:55.1]} 9... Nbd7 {[%clk
0:02:40.4]} 10. e4 {[%clk 0:02:54.7]} 10... e5 {[%clk 0:02:37.4]} 11. dxe5
{[%clk 0:02:43.3]} 11... Nxe5 {[%clk 0:02:15.4]} 12. Nxe5 {[%clk 0:02:41.5]}
12... dxe5 {[%clk 0:02:15]} 13. exf5 {[%clk 0:02:40.9]} 13... Bxf5 {[%clk
0:02:14.6]} 14. Bxe5 {[%clk 0:02:39.2]} 14... Qf7 {[%clk 0:02:03]} 15. Nc4
{[%clk 0:02:36.2]} 15... Rad8 {[%clk 0:01:54]} 16. Qc1 {[%clk 0:02:36.3]} 16...
Ng4 {[%clk 0:01:49.8]} 17. Nd6 {[%clk 0:02:03.3]} 17... Rxd6 {[%clk 0:01:16.2]}
18. Bxd6 {[%clk 0:02:04.2]} 18... Bd4 {[%clk 0:01:07.8]} 19. Re2 {[%clk
0:00:43.5]} 19... Nxf2 {[%clk 0:00:46.8]} 20. Qd2 {[%clk 0:00:36.9]} 20... Nh3+
{[%clk 0:00:29.5]} 21. Kh1 {[%clk 0:00:36.5]} 21... Bxa1 {[%clk 0:00:18.6]} 22.
Bxf8 {[%clk 0:00:36.5]} 22... Qxf8 {[%clk 0:00:17.7]} 23. c3 {[%clk 0:00:32.7]}
23... Qf6 {[%clk 0:00:15.1]} 24. Re3 {[%clk 0:00:25.1]} 24... Ng5 {[%clk
0:00:09.2]} 25. Qc1 {[%clk 0:00:22.9]} 25... Be4 {[%clk 0:00:07.9]} 26. Qxa1
{[%clk 0:00:13.2]} 26... Qf2 {[%clk 0:00:03.5]} 27. Rxe4 {[%clk 0:00:13]} 1-0

[Event "*** SCC Grand Prix: Titled Tuesday Blitz"]
[Site "Chess.com"]
[Date "2020.06.02"]
[Round "3"]
[White "Harry_Rakkel"]
[Black "Ginzburg_Yakov"]
[Result "1-0"]
[WhiteElo "2530"]
[BlackElo "2334"]
[TimeControl "180+1"]
[EndTime "10:28:31 PDT"]
[Termination "Harry_Rakkel won on time"]

1. d4 {[%clk 0:03:00.9]} 1... Nf6 {[%clk 0:02:58.9]} 2. Nf3 {[%clk 0:02:59.9]}
2... c5 {[%clk 0:02:58.6]} 3. c3 {[%clk 0:02:58.3]} 3... e6 {[%clk 0:02:58.1]}
4. Bg5 {[%clk 0:02:56.5]} 4... d5 {[%clk 0:02:51.9]} 5. Nbd2 {[%clk 0:02:54.8]}
5... Nbd7 {[%clk 0:02:49.3]} 6. e3 {[%clk 0:02:54.2]} 6... Qc7 {[%clk
0:02:46.2]} 7. Bd3 {[%clk 0:02:53.4]} 7... Bd6 {[%clk 0:02:43.7]} 8. Qe2 {[%clk
0:02:50.2]} 8... O-O {[%clk 0:02:42.4]} 9. O-O {[%clk 0:02:47.9]} 9... h6 {[%clk
0:02:40.7]} 10. Bxf6 {[%clk 0:02:37.2]} 10... Nxf6 {[%clk 0:02:40.2]} 11. e4
{[%clk 0:02:37.8]} 11... dxe4 {[%clk 0:01:44.3]} 12. Nxe4 {[%clk 0:02:36.4]}
12... Nxe4 {[%clk 0:01:45]} 13. Qxe4 {[%clk 0:02:35.4]} 13... g6 {[%clk
0:01:40.7]} 14. Rfd1 {[%clk 0:02:23.9]} 14... Bd7 {[%clk 0:01:38.3]} 15. dxc5
{[%clk 0:02:21.8]} 15... Qxc5 {[%clk 0:01:33.6]} 16. Qh4 {[%clk 0:02:15.1]}
16... Kg7 {[%clk 0:01:30.4]} 17. Bxg6 {[%clk 0:02:03.1]} 17... Kxg6 {[%clk
0:01:12.1]} 18. Rd4 {[%clk 0:01:59.4]} 18... f5 {[%clk 0:01:04.2]} 19. Rad1
{[%clk 0:01:54.7]} 19... Be7 {[%clk 0:00:47.5]} 20. Qg3+ {[%clk 0:01:51.7]}
20... Bg5 {[%clk 0:00:40]} 21. Ne5+ {[%clk 0:01:42.9]} 21... Kg7 {[%clk
0:00:25.4]} 22. Nxd7 {[%clk 0:01:35.3]} 22... f4 {[%clk 0:00:25.7]} 23. Nxc5
{[%clk 0:01:13.9]} 23... fxg3 {[%clk 0:00:25.3]} 24. Nxe6+ {[%clk 0:01:13.2]}
24... Kg8 {[%clk 0:00:23.5]} 25. Nxf8 {[%clk 0:01:07.7]} 25... gxf2+ {[%clk
0:00:23.9]} 26. Kxf2 {[%clk 0:01:07.4]} 26... Rxf8+ {[%clk 0:00:24.8]} 27. Ke2
{[%clk 0:01:06.6]} 27... Re8+ {[%clk 0:00:23.9]} 28. Kf3 {[%clk 0:01:05.9]}
28... Rf8+ {[%clk 0:00:20.8]} 29. Kg3 {[%clk 0:01:04.7]} 29... Bf6 {[%clk
0:00:11.2]} 30. Rg4+ {[%clk 0:01:03]} 30... Kf7 {[%clk 0:00:10.1]} 31. Rd7+
{[%clk 0:01:01.5]} 31... Ke6 {[%clk 0:00:10.3]} 32. Rxb7 {[%clk 0:01:01.3]}
32... h5 {[%clk 0:00:09.9]} 33. Ra4 {[%clk 0:00:57.9]} 33... h4+ {[%clk
0:00:06.3]} 34. Kh3 {[%clk 0:00:57.5]} 34... Rd8 {[%clk 0:00:03.1]} 35. Ra6+
{[%clk 0:00:55.9]} 35... Kf5 {[%clk 0:00:02.7]} 36. Rf7 {[%clk 0:00:53.1]} 36...
Rd3+ {[%clk 0:00:02.4]} 37. g3 {[%clk 0:00:52.9]} 1-0

[Event "*** SCC Grand Prix: Titled Tuesday Blitz"]
[Site "Chess.com"]
[Date "2020.06.02"]
[Round "3"]
[White "Mbneu"]
[Black "Gmedmundo"]
[Result "0-1"]
[WhiteElo "2246"]
[BlackElo "2491"]
[TimeControl "180+1"]
[EndTime "10:28:31 PDT"]
[Termination "Gmedmundo won by resignation"]

1. d4 {[%clk 0:03:00.9]} 1... Nf6 {[%clk 0:02:59.2]} 2. c4 {[%clk 0:03:01.4]}
2... e6 {[%clk 0:02:59]} 3. Nc3 {[%clk 0:03:01.9]} 3... Bb4 {[%clk 0:02:58.2]}
4. Bg5 {[%clk 0:03:02.6]} 4... c5 {[%clk 0:02:49.2]} 5. d5 {[%clk 0:02:55.8]}
5... h6 {[%clk 0:02:45.5]} 6. Bh4 {[%clk 0:02:54.8]} 6... exd5 {[%clk
0:02:38.1]} 7. cxd5 {[%clk 0:02:53.4]} 7... d6 {[%clk 0:02:36.6]} 8. e3 {[%clk
0:02:51.7]} 8... Nbd7 {[%clk 0:02:34.3]} 9. Bb5 {[%clk 0:02:49]} 9... Qa5 {[%clk
0:02:27.5]} 10. Bxd7+ {[%clk 0:02:46.7]} 10... Nxd7 {[%clk 0:02:26]} 11. Ne2
{[%clk 0:02:44.5]} 11... Ne5 {[%clk 0:02:09.5]} 12. O-O {[%clk 0:02:40.9]} 12...
Qa6 {[%clk 0:02:05.1]} 13. Ne4 {[%clk 0:02:28.3]} 13... f5 {[%clk 0:01:54.6]}
14. N4c3 {[%clk 0:01:23.8]} 14... O-O {[%clk 0:01:51.8]} 15. h3 {[%clk
0:01:12.2]} 15... Bd7 {[%clk 0:01:50.4]} 16. Bg3 {[%clk 0:01:02.4]} 16... Rae8
{[%clk 0:01:46.9]} 17. Nf4 {[%clk 0:00:59]} 17... Bxc3 {[%clk 0:01:41.1]} 18.
bxc3 {[%clk 0:00:58.1]} 18... Qc4 {[%clk 0:01:24.5]} 19. a4 {[%clk 0:00:40.6]}
19... b6 {[%clk 0:01:22.8]} 20. a5 {[%clk 0:00:39.6]} 20... b5 {[%clk
0:01:20.8]} 21. a6 {[%clk 0:00:39.5]} 21... g5 {[%clk 0:01:13.2]} 22. Ne2 {[%clk
0:00:32.7]} 22... Rf6 {[%clk 0:01:01.4]} 23. f4 {[%clk 0:00:30.6]} 23... Ng6
{[%clk 0:00:49.8]} 24. fxg5 {[%clk 0:00:29.4]} 24... hxg5 {[%clk 0:00:49.1]} 25.
Bf2 {[%clk 0:00:23.1]} 25... f4 {[%clk 0:00:45.7]} 26. Re1 {[%clk 0:00:16.1]}
26... f3 {[%clk 0:00:41.2]} 27. Ng3 {[%clk 0:00:14.2]} 27... fxg2 {[%clk
0:00:37.7]} 28. Kxg2 {[%clk 0:00:14.1]} 28... Nh4+ {[%clk 0:00:36.6]} 29. Kg1
{[%clk 0:00:10.8]} 29... Nf3+ {[%clk 0:00:34.9]} 30. Kg2 {[%clk 0:00:11.1]}
30... Ref8 {[%clk 0:00:31.5]} 31. Bg1 {[%clk 0:00:09.7]} 31... Qh4 {[%clk
0:00:23.3]} 0-1

[Event "*** SCC Grand Prix: Titled Tuesday Blitz"]
[Site "Chess.com"]
[Date "2020.06.02"]
[Round "3"]
[White "kudesnik84"]
[Black "Ashedu66"]
[Result "1-0"]
[WhiteElo "2387"]
[BlackElo "2166"]
[TimeControl "180+1"]
[EndTime "10:28:31 PDT"]
[Termination "kudesnik84 won by resignation"]

1. e4 {[%clk 0:03:00.9]} 1... e5 {[%clk 0:02:59.4]} 2. Nf3 {[%clk 0:03:00]} 2...
Nc6 {[%clk 0:02:59.5]} 3. Bc4 {[%clk 0:02:59.7]} 3... Bc5 {[%clk 0:02:58.7]} 4.
c3 {[%clk 0:02:58.9]} 4... Qe7 {[%clk 0:02:57.1]} 5. O-O {[%clk 0:02:57.9]} 5...
Nf6 {[%clk 0:02:57.1]} 6. Re1 {[%clk 0:02:56.4]} 6... d6 {[%clk 0:02:54.7]} 7.
b4 {[%clk 0:02:19.2]} 7... Bb6 {[%clk 0:02:50.5]} 8. a4 {[%clk 0:02:18.8]} 8...
a6 {[%clk 0:02:50.1]} 9. d3 {[%clk 0:01:50.8]} 9... O-O {[%clk 0:02:47.8]} 10.
Bg5 {[%clk 0:01:46.4]} 10... Nd8 {[%clk 0:02:47]} 11. a5 {[%clk 0:01:35.4]}
11... Ba7 {[%clk 0:02:46.1]} 12. d4 {[%clk 0:01:29.4]} 12... Ne6 {[%clk
0:02:40.3]} 13. Bh4 {[%clk 0:01:25.8]} 13... Nf4 {[%clk 0:02:38.7]} 14. Nbd2
{[%clk 0:01:03.7]} 14... Ng6 {[%clk 0:02:28.5]} 15. Bg3 {[%clk 0:00:59.6]} 15...
Nh5 {[%clk 0:02:12.9]} 16. Nxe5 {[%clk 0:00:48.7]} 16... dxe5 {[%clk 0:01:56.7]}
17. Qxh5 {[%clk 0:00:47.9]} 17... exd4 {[%clk 0:01:54.8]} 18. cxd4 {[%clk
0:00:46.2]} 18... Bxd4 {[%clk 0:01:53.3]} 19. Rac1 {[%clk 0:00:43.1]} 19... Be5
{[%clk 0:00:43.4]} 20. Nf3 {[%clk 0:00:43]} 20... Bxg3 {[%clk 0:00:42.3]} 21.
hxg3 {[%clk 0:00:43.6]} 21... Be6 {[%clk 0:00:32.1]} 22. Ng5 {[%clk 0:00:40.5]}
22... h6 {[%clk 0:00:20.4]} 23. Nxe6 {[%clk 0:00:38.8]} 23... fxe6 {[%clk
0:00:20.6]} 24. Qxg6 {[%clk 0:00:38.6]} 24... Rf6 {[%clk 0:00:20.3]} 25. Qg4
{[%clk 0:00:37.7]} 25... Qxb4 {[%clk 0:00:19.5]} 26. Bxe6+ {[%clk 0:00:35.7]}
26... Kh8 {[%clk 0:00:19.5]} 27. e5 {[%clk 0:00:30.4]} 27... Qxg4 {[%clk
0:00:10.4]} 28. Bxg4 {[%clk 0:00:31.3]} 28... Rf7 {[%clk 0:00:09.8]} 29. e6
{[%clk 0:00:29.4]} 29... Re7 {[%clk 0:00:09.4]} 30. Red1 {[%clk 0:00:29.6]}
30... Rae8 {[%clk 0:00:08.4]} 31. Rd7 {[%clk 0:00:28]} 31... g6 {[%clk
0:00:08.4]} 32. Rcxc7 {[%clk 0:00:26.4]} 1-0

[Event "*** SCC Grand Prix: Titled Tuesday Blitz"]
[Site "Chess.com"]
[Date "2020.06.02"]
[Round "3"]
[White "doons21"]
[Black "tteshan"]
[Result "1-0"]
[WhiteElo "2485"]
[BlackElo "2222"]
[TimeControl "180+1"]
[EndTime "10:28:32 PDT"]
[Termination "doons21 won by resignation"]

1. e4 {[%clk 0:03:00.9]} 1... c5 {[%clk 0:02:59.9]} 2. c3 {[%clk 0:02:57]} 2...
d5 {[%clk 0:02:58.7]} 3. exd5 {[%clk 0:02:56.2]} 3... Qxd5 {[%clk 0:02:59.6]} 4.
d4 {[%clk 0:02:56.9]} 4... Nf6 {[%clk 0:02:59.3]} 5. Nf3 {[%clk 0:02:56.8]} 5...
e6 {[%clk 0:02:59.3]} 6. Bd3 {[%clk 0:02:56.6]} 6... cxd4 {[%clk 0:02:53.5]} 7.
cxd4 {[%clk 0:02:56.1]} 7... Bd7 {[%clk 0:02:53.6]} 8. O-O {[%clk 0:02:54.4]}
8... Bd6 {[%clk 0:02:48.2]} 9. Nc3 {[%clk 0:02:48.6]} 9... Qh5 {[%clk
0:02:48.3]} 10. Ne5 {[%clk 0:02:18.4]} 10... Qxd1 {[%clk 0:02:36.4]} 11. Rxd1
{[%clk 0:02:17]} 11... Bc6 {[%clk 0:02:32.6]} 12. Nb5 {[%clk 0:02:11.8]} 12...
Bxb5 {[%clk 0:02:22.2]} 13. Bxb5+ {[%clk 0:02:10.3]} 13... Ke7 {[%clk
0:02:22.4]} 14. Bg5 {[%clk 0:01:56.7]} 14... h6 {[%clk 0:02:19.1]} 15. Bh4
{[%clk 0:01:56.6]} 15... g5 {[%clk 0:02:17]} 16. Bg3 {[%clk 0:01:56.9]} 16...
Rd8 {[%clk 0:02:08.5]} 17. Rac1 {[%clk 0:01:33.4]} 17... a6 {[%clk 0:02:00.9]}
18. Be2 {[%clk 0:01:32.8]} 18... Nbd7 {[%clk 0:01:37.9]} 19. Nxf7 {[%clk
0:01:13]} 19... Bxg3 {[%clk 0:01:24.9]} 20. Nxd8 {[%clk 0:01:13]} 20... Bf4
{[%clk 0:01:25]} 21. Nxb7 {[%clk 0:01:08.5]} 21... Bxc1 {[%clk 0:01:23.6]} 22.
Rxc1 {[%clk 0:01:09.4]} 22... Ra7 {[%clk 0:01:12.3]} 23. Na5 {[%clk 0:01:03.5]}
23... Kf8 {[%clk 0:00:56.4]} 24. g3 {[%clk 0:00:57.6]} 24... Ra8 {[%clk
0:00:54.5]} 25. Bc4 {[%clk 0:00:52.9]} 25... Re8 {[%clk 0:00:44.1]} 26. Re1
{[%clk 0:00:49.7]} 26... Kf7 {[%clk 0:00:32.2]} 27. Nb7 {[%clk 0:00:45.2]} 27...
Rb8 {[%clk 0:00:23]} 28. Bxe6+ {[%clk 0:00:36.5]} 28... Kg7 {[%clk 0:00:22.7]}
29. Na5 {[%clk 0:00:24.2]} 29... Nf8 {[%clk 0:00:19.9]} 30. Bb3 {[%clk
0:00:23.5]} 30... Rb6 {[%clk 0:00:17.1]} 31. Nc4 {[%clk 0:00:23.3]} 31... Rc6
{[%clk 0:00:16.1]} 32. Ne3 {[%clk 0:00:23.2]} 32... Rb6 {[%clk 0:00:15.1]} 33.
Nf5+ {[%clk 0:00:23.5]} 33... Kg6 {[%clk 0:00:14.9]} 34. Ne7+ {[%clk 0:00:23.2]}
34... Kg7 {[%clk 0:00:15]} 35. d5 {[%clk 0:00:23.5]} 35... Rd6 {[%clk
0:00:14.5]} 36. Nf5+ {[%clk 0:00:23.6]} 1-0

[Event "*** SCC Grand Prix: Titled Tuesday Blitz"]
[Site "Chess.com"]
[Date "2020.06.02"]
[Round "3"]
[White "JonahWillow"]
[Black "AlexZambrano"]
[Result "1-0"]
[WhiteElo "2667"]
[BlackElo "2231"]
[TimeControl "180+1"]
[EndTime "10:28:32 PDT"]
[Termination "JonahWillow won on time"]

1. e4 {[%clk 0:03:00.9]} 1... d5 {[%clk 0:02:40.4]} 2. Nc3 {[%clk 0:02:59.6]}
2... dxe4 {[%clk 0:02:34.5]} 3. Nxe4 {[%clk 0:03:00.5]} 3... Nf6 {[%clk
0:02:31]} 4. Nxf6+ {[%clk 0:02:57.7]} 4... exf6 {[%clk 0:02:31.1]} 5. d4 {[%clk
0:02:57.9]} 5... Bd6 {[%clk 0:02:31.7]} 6. Bd3 {[%clk 0:02:55.9]} 6... O-O
{[%clk 0:02:31.8]} 7. Ne2 {[%clk 0:02:56.8]} 7... Bg4 {[%clk 0:02:27.3]} 8. c3
{[%clk 0:02:49.7]} 8... c5 {[%clk 0:02:24.1]} 9. d5 {[%clk 0:02:32.2]} 9... Re8
{[%clk 0:02:23.6]} 10. Be3 {[%clk 0:02:27.1]} 10... Bxe2 {[%clk 0:02:03.8]} 11.
Bxe2 {[%clk 0:02:22.7]} 11... Nd7 {[%clk 0:01:59.8]} 12. O-O {[%clk 0:02:18.4]}
12... Qc7 {[%clk 0:01:55.1]} 13. h3 {[%clk 0:02:15.7]} 13... Ne5 {[%clk
0:01:48]} 14. Qa4 {[%clk 0:02:12.7]} 14... b6 {[%clk 0:01:41.7]} 15. Rad1 {[%clk
0:02:09.7]} 15... Ng6 {[%clk 0:01:26.7]} 16. Bb5 {[%clk 0:02:01.4]} 16... Re7
{[%clk 0:01:22.3]} 17. Bc6 {[%clk 0:02:00.6]} 17... Rd8 {[%clk 0:01:10.5]} 18.
b4 {[%clk 0:01:37.2]} 18... Ne5 {[%clk 0:00:37.7]} 19. Bb5 {[%clk 0:01:31]}
19... cxb4 {[%clk 0:00:27.3]} 20. cxb4 {[%clk 0:01:31.9]} 20... Qc3 {[%clk
0:00:27.2]} 21. a3 {[%clk 0:01:21.8]} 21... Ng6 {[%clk 0:00:21.8]} 22. Bd4
{[%clk 0:01:11.3]} 22... Qc7 {[%clk 0:00:19.5]} 23. Rc1 {[%clk 0:01:11.3]} 23...
Qb8 {[%clk 0:00:19.8]} 24. Rfe1 {[%clk 0:00:46]} 24... Nf4 {[%clk 0:00:09.7]}
25. Qb3 {[%clk 0:00:39.8]} 25... Rc8 {[%clk 0:00:04.5]} 26. Bc6 {[%clk
0:00:37.1]} 26... Rec7 {[%clk 0:00:01.3]} 27. Rcd1 {[%clk 0:00:27.9]} 1-0

[Event "*** SCC Grand Prix: Titled Tuesday Blitz"]
[Site "Chess.com"]
[Date "2020.06.02"]
[Round "3"]
[White "The_Machine04"]
[Black "DucksParadise"]
[Result "1-0"]
[WhiteElo "2302"]
[BlackElo "2051"]
[TimeControl "180+1"]
[EndTime "10:28:32 PDT"]
[Termination "The_Machine04 won by resignation"]

1. d4 {[%clk 0:02:56.9]} 1... Nf6 {[%clk 0:02:59.8]} 2. Bg5 {[%clk 0:02:55.3]}
2... e6 {[%clk 0:02:55.5]} 3. Nd2 {[%clk 0:02:53.2]} 3... d5 {[%clk 0:02:48.8]}
4. e3 {[%clk 0:02:52.6]} 4... Nbd7 {[%clk 0:02:38.9]} 5. f4 {[%clk 0:02:51.7]}
5... Be7 {[%clk 0:02:29.5]} 6. Bd3 {[%clk 0:02:50.9]} 6... b6 {[%clk 0:02:27.2]}
7. Ngf3 {[%clk 0:02:49.5]} 7... Bb7 {[%clk 0:02:27.5]} 8. Bxf6 {[%clk
0:02:49.4]} 8... Nxf6 {[%clk 0:02:27.2]} 9. Ne5 {[%clk 0:02:49.4]} 9... Ne4
{[%clk 0:02:18.3]} 10. Nxe4 {[%clk 0:02:44.6]} 10... dxe4 {[%clk 0:02:18.1]} 11.
Bb5+ {[%clk 0:02:44.6]} 11... Kf8 {[%clk 0:02:17.9]} 12. Qh5 {[%clk 0:02:44.4]}
12... g6 {[%clk 0:02:14.5]} 13. Qh6+ {[%clk 0:02:33.1]} 13... Kg8 {[%clk
0:02:13.2]} 14. Nc6 {[%clk 0:02:17.2]} 14... Qd6 {[%clk 0:02:04.2]} 15. Nxe7+
{[%clk 0:02:15.5]} 15... Qxe7 {[%clk 0:02:05.1]} 16. c3 {[%clk 0:02:06.9]} 16...
f5 {[%clk 0:01:51.7]} 17. h4 {[%clk 0:01:55.9]} 17... Qg7 {[%clk 0:01:49.3]} 18.
Qxg7+ {[%clk 0:01:54.5]} 18... Kxg7 {[%clk 0:01:50.2]} 19. h5 {[%clk 0:01:52]}
19... Kf6 {[%clk 0:01:35.1]} 20. Kf2 {[%clk 0:01:45.1]} 20... g5 {[%clk
0:01:27.6]} 21. g3 {[%clk 0:01:32.4]} 21... Rhg8 {[%clk 0:01:25.1]} 22. Rag1
{[%clk 0:01:29.1]} 22... h6 {[%clk 0:01:16.9]} 23. a4 {[%clk 0:01:11]} 23... a5
{[%clk 0:01:10.8]} 24. Rc1 {[%clk 0:01:05.9]} 24... gxf4 {[%clk 0:01:03]} 25.
gxf4 {[%clk 0:01:03.3]} 25... Rg4 {[%clk 0:01:02.8]} 26. Be2 {[%clk 0:01:02.6]}
26... Rg7 {[%clk 0:00:56.8]} 27. Rhg1 {[%clk 0:01:02.4]} 27... Rag8 {[%clk
0:00:52.5]} 28. Rxg7 {[%clk 0:01:01.8]} 28... Rxg7 {[%clk 0:00:53.2]} 29. b4
{[%clk 0:00:59.4]} 29... axb4 {[%clk 0:00:30.6]} 30. cxb4 {[%clk 0:00:58.7]}
30... Bd5 {[%clk 0:00:25]} 31. a5 {[%clk 0:00:56.8]} 31... bxa5 {[%clk 0:00:15]}
32. bxa5 {[%clk 0:00:57.7]} 32... c6 {[%clk 0:00:06.4]} 33. a6 {[%clk
0:00:57.7]} 33... Ra7 {[%clk 0:00:07.3]} 34. Rb1 {[%clk 0:00:56.4]} 34... c5
{[%clk 0:00:04]} 35. dxc5 {[%clk 0:00:54.4]} 35... Ke7 {[%clk 0:00:04.4]} 36.
Rg1 {[%clk 0:00:52.4]} 1-0